[Event "FIDE U16 Olympiad_boards_81-124"]
[Site "Eindhoven, Netherlands"]
[Date "2023.08.14"]
[Round "2.6"]
[White "Helmy, Muhammad Adnin Nuaym"]
[Black "Liu, Henry"]
[Result "0-1"]
[TimeControl "45min+10sec"]
[WhiteElo "1292"]
[BlackElo "1816"]

1. Nf3 {[%clk 00:45:17]} {[%emt 00:00:02]} d5 {[%clk 00:45:19]} {[%emt
00:00:02]} 2. c4 {[%clk 00:45:25]} {[%emt 00:00:01]} c6 {[%clk 00:45:28]}
{[%emt 00:00:02]} 3. e3 {[%clk 00:45:30]} {[%emt 00:00:05]} Nf6 {[%clk
00:45:24]} {[%emt 00:00:13]} 4. Nc3 {[%clk 00:45:38]} {[%emt 00:00:03]} g6
{[%clk 00:44:25]} {[%emt 00:01:10]} 5. b3 {[%clk 00:44:46]} {[%emt 00:01:01]}
Bg7 {[%clk 00:44:33]} {[%emt 00:00:02]} 6. Bb2 {[%clk 00:44:51]} {[%emt
00:00:05]} O-O {[%clk 00:43:56]} {[%emt 00:00:47]} 7. d4 {[%clk 00:44:46]}
{[%emt 00:00:15]} Ne4 {[%clk 00:38:10]} {[%emt 00:05:56]} 8. Bd3 {[%clk
00:39:41]} {[%emt 00:05:14]} f5 {[%clk 00:36:08]} {[%emt 00:02:13]} 9. O-O
{[%clk 00:36:32]} {[%emt 00:03:19]} e6 {[%clk 00:34:50]} {[%emt 00:01:28]} 10.
Qc2 {[%clk 00:34:44]} {[%emt 00:01:57]} Nd7 {[%clk 00:33:42]} {[%emt 00:01:19]}
11. Rad1 {[%clk 00:32:37]} {[%emt 00:02:17]} g5 {[%clk 00:29:28]} {[%emt
00:04:24]} 12. Nd2 {[%clk 00:25:18]} {[%emt 00:07:28]} g4 {[%clk 00:24:36]}
{[%emt 00:05:03]} 13. Ne2 {[%clk 00:17:20]} {[%emt 00:08:07]} Rf6 {[%clk
00:16:50]} {[%emt 00:07:57]} 14. Bxe4 {[%clk 00:12:44]} {[%emt 00:04:46]} fxe4
{[%clk 00:16:34]} {[%emt 00:00:26]} 15. Nf4 {[%clk 00:10:31]} {[%emt 00:02:22]}
Bh6 {[%clk 00:15:15]} {[%emt 00:01:29]} 16. Nh5 {[%clk 00:09:19]} {[%emt
00:01:23]} Rf7 {[%clk 00:12:57]} {[%emt 00:02:28]} 17. Rfe1 {[%clk 00:03:50]}
{[%emt 00:05:39]} Qh4 {[%clk 00:12:48]} {[%emt 00:00:18]} 18. Nf4 {[%clk
00:03:18]} {[%emt 00:00:42]} Nf6 {[%clk 00:08:21]} {[%emt 00:04:39]} 19. Nf1
{[%clk 00:00:54]} {[%emt 00:02:33]} Bd7 {[%clk 00:07:34]} {[%emt 00:00:57]} 20.
Qe2 {[%clk 00:00:34]} {[%emt 00:00:30]} Bf8 {[%clk 00:06:11]} {[%emt 00:01:34]}
21. Bc3 {[%clk 00:00:33]} {[%emt 00:00:10]} Bd6 {[%clk 00:05:37]} {[%emt
00:00:44]} 22. c5 {[%clk 00:00:33]} {[%emt 00:00:10]} Bc7 {[%clk 00:04:45]}
{[%emt 00:01:02]} 23. b4 {[%clk 00:00:42]} {[%emt 00:00:01]} Qg5 {[%clk
00:04:15]} {[%emt 00:00:41]} 24. Bd2 {[%clk 00:00:31]} {[%emt 00:00:20]} Raf8
{[%clk 00:03:22]} {[%emt 00:01:03]} 25. a4 {[%clk 00:00:22]} {[%emt 00:00:19]}
a6 {[%clk 00:02:44]} {[%emt 00:00:48]} 26. Ra1 {[%clk 00:00:21]} {[%emt
00:00:10]} Re8 {[%clk 00:02:01]} {[%emt 00:00:53]} 27. g3 {[%clk 00:00:21]}
{[%emt 00:00:10]} e5 {[%clk 00:01:50]} {[%emt 00:00:21]} 28. Ng2 {[%clk
00:00:19]} {[%emt 00:00:12]} Qg7 {[%clk 00:01:41]} {[%emt 00:00:20]} 29. Bc3
{[%clk 00:00:23]} {[%emt 00:00:07]} h6 {[%clk 00:01:20]} {[%emt 00:00:30]} 30.
Reb1 {[%clk 00:00:28]} {[%emt 00:00:05]} Nh7 {[%clk 00:01:26]} {[%emt
00:00:04]} 31. dxe5 {[%clk 00:00:32]} {[%emt 00:00:07]} Bxe5 {[%clk 00:01:34]}
{[%emt 00:00:02]} 32. Bxe5 {[%clk 00:00:40]} {[%emt 00:00:01]} Rxe5 {[%clk
00:01:37]} {[%emt 00:00:07]} 33. Nf4 {[%clk 00:00:47]} {[%emt 00:00:04]} Ng5
{[%clk 00:01:23]} {[%emt 00:00:23]} 34. Nd2 {[%clk 00:00:55]} {[%emt 00:00:02]}
Ne6 {[%emt 00:00:31]} 35. Nxe6 {[%clk 00:00:48]} {[%emt 00:00:17]} Rxe6 {[%clk
00:01:06]} {[%emt 00:00:07]} 36. Nb3 {[%clk 00:00:46]} {[%emt 00:00:11]} Ref6
{[%clk 00:01:12]} {[%emt 00:00:05]} 37. Rf1 {[%clk 00:00:54]} h5 {[%clk
00:01:00]} {[%emt 00:00:22]} 38. Nd4 {[%clk 00:01:01]} {[%emt 00:00:03]} Qf8
{[%clk 00:00:56]} {[%emt 00:00:14]} 39. Rac1 {[%clk 00:00:58]} {[%emt
00:00:12]} Qe8 {[%clk 00:00:31]} {[%emt 00:00:35]} 40. Rb1 {[%clk 00:00:56]}
{[%emt 00:00:12]} Qf8 {[%clk 00:00:40]} {[%emt 00:00:02]} 41. Rbc1 {[%clk
00:01:04]} {[%emt 00:00:01]} h4 {[%clk 00:00:29]} {[%emt 00:00:22]} 42. Kg2
{[%clk 00:00:28]} {[%emt 00:00:46]} Qh6 {[%clk 00:00:33]} {[%emt 00:00:07]} 43.
b5 {[%clk 00:00:14]} {[%emt 00:00:23]} axb5 {[%clk 00:00:37]} {[%emt 00:00:06]}
44. axb5 {[%clk 00:00:23]} {[%emt 00:00:01]} Rh7 {[%clk 00:00:27]} {[%emt
00:00:20]} 45. Rh1 {[%clk 00:00:22]} {[%emt 00:00:11]} Rhf7 {[%clk 00:00:36]}
46. Rhf1 {[%clk 00:00:30]} {[%emt 00:00:02]} Rf3 {[%clk 00:00:29]} {[%emt
00:00:17]} 47. bxc6 {[%clk 00:00:32]} {[%emt 00:00:09]} bxc6 {[%clk 00:00:38]}
{[%emt 00:00:01]} 48. Kg1 {[%clk 00:00:16]} {[%emt 00:00:26]} hxg3 {[%clk
00:00:39]} {[%emt 00:00:08]} 49. fxg3 {[%clk 00:00:12]} {[%emt 00:00:14]} Qxe3+
{[%clk 00:00:33]} {[%emt 00:00:16]} 50. Qxe3 {[%clk 00:00:19]} {[%emt
00:00:03]} Rxe3 {[%clk 00:00:42]} {[%emt 00:00:01]} 51. Rxf7 {[%clk 00:00:26]}
{[%emt 00:00:03]} Kxf7 {[%clk 00:00:51]} 52. Kf2 {[%clk 00:00:31]} {[%emt
00:00:06]} Rd3 {[%clk 00:00:53]} {[%emt 00:00:08]} 53. Ne2 {[%clk 00:00:24]}
{[%emt 00:00:17]} e3+ {[%clk 00:00:28]} {[%emt 00:00:36]} 54. Ke1 {[%clk
00:00:28]} {[%emt 00:00:05]} Ra3 {[%clk 00:00:26]} {[%emt 00:00:12]} 55. Rc3
{[%clk 00:00:16]} {[%emt 00:00:22]} Ra1+ {[%clk 00:00:24]} {[%emt 00:00:13]} 56.
Rc1 {[%clk 00:00:18]} {[%emt 00:00:07]} Ra3 {[%clk 00:00:24]} {[%emt 00:00:09]}
57. Rc3 {[%clk 00:00:20]} {[%emt 00:00:08]} Rxc3 {[%clk 00:00:33]} {[%emt
00:00:02]} 58. Nxc3 {[%clk 00:00:29]} Kf6 {[%clk 00:00:42]} {[%emt 00:00:01]}
59. Ke2 {[%clk 00:00:36]} {[%emt 00:00:03]} Ke5 {[%clk 00:00:49]} {[%emt
00:00:03]} 60. Nb1 {[%clk 00:00:16]} {[%emt 00:00:30]} d4 {[%clk 00:00:55]}
{[%emt 00:00:04]} 61. Na3 {[%clk 00:00:21]} {[%emt 00:00:05]} Kd5 {[%clk
00:01:02]} 0-1

[Event "FIDE U16 Olympiad_boards_81-124"]
[Site "Eindhoven, Netherlands"]
[Date "2023.08.14"]
[Round "2.7"]
[White "Ajith, Aayush"]
[Black "Akhramsyah, Ashraf Alimuddin Zah"]
[Result "1/2-1/2"]
[TimeControl "45min+10sec"]
[WhiteElo "1756"]
[BlackElo "1350"]

1. d4 {[%clk 00:45:17]} {[%emt 00:00:02]} d5 {[%clk 00:45:02]} {[%emt
00:00:19]} 2. c4 {[%clk 00:45:22]} {[%emt 00:00:04]} c6 {[%clk 00:45:03]}
{[%emt 00:00:09]} 3. Nc3 {[%clk 00:45:22]} {[%emt 00:00:10]} Nf6 {[%clk
00:45:00]} {[%emt 00:00:13]} 4. Bg5 {[%clk 00:44:59]} {[%emt 00:00:32]} Bf5
{[%clk 00:43:37]} {[%emt 00:01:34]} 5. Bxf6 {[%clk 00:39:30]} {[%emt 00:05:39]}
gxf6 {[%clk 00:39:50]} {[%emt 00:03:56]} 6. cxd5 {[%clk 00:39:21]} {[%emt
00:00:20]} cxd5 {[%clk 00:39:56]} {[%emt 00:00:04]} 7. Qb3 {[%clk 00:36:56]}
{[%emt 00:02:34]} Nc6 {[%clk 00:31:21]} {[%emt 00:08:46]} 8. e3 {[%clk
00:33:54]} {[%emt 00:03:12]} Qd7 {[%clk 00:25:28]} {[%emt 00:06:03]} 9. Qxd5
{[%clk 00:26:43]} {[%emt 00:07:22]} Nb4 {[%clk 00:17:28]} {[%emt 00:08:10]} 10.
Bb5 {[%clk 00:24:02]} {[%emt 00:02:51]} Nxd5 {[%clk 00:17:29]} {[%emt
00:00:09]} 11. Bxd7+ {[%clk 00:23:41]} {[%emt 00:00:30]} Kxd7 {[%clk 00:17:36]}
{[%emt 00:00:03]} 12. Nxd5 {[%clk 00:23:36]} {[%emt 00:00:16]} Be4 {[%clk
00:16:43]} {[%emt 00:01:03]} 13. Nf4 {[%clk 00:23:25]} {[%emt 00:00:20]} e5
{[%clk 00:16:37]} {[%emt 00:00:17]} 14. dxe5 {[%clk 00:13:15]} {[%emt
00:10:20]} fxe5 {[%clk 00:16:30]} {[%emt 00:00:16]} 15. f3 {[%clk 00:12:04]}
{[%emt 00:01:21]} exf4 {[%clk 00:16:02]} {[%emt 00:00:38]} 16. O-O-O+ {[%clk
00:09:39]} {[%emt 00:02:36]} Ke6 {[%clk 00:13:28]} {[%emt 00:02:44]} 17. fxe4
{[%clk 00:09:39]} {[%emt 00:00:09]} fxe3 {[%clk 00:13:31]} {[%emt 00:00:07]} 18.
Nf3 {[%clk 00:08:29]} {[%emt 00:01:21]} Bh6 {[%clk 00:12:58]} {[%emt 00:00:42]}
19. Rd5 {[%clk 00:06:06]} {[%emt 00:02:33]} Rhd8 {[%clk 00:09:48]} {[%emt
00:03:20]} 20. Nd4+ {[%clk 00:03:27]} {[%emt 00:02:50]} Kf6 {[%clk 00:09:53]}
{[%emt 00:00:04]} 21. Rf1+ {[%clk 00:01:52]} {[%emt 00:01:45]} Kg6 {[%clk
00:09:48]} {[%emt 00:00:15]} 22. Re1 {[%clk 00:01:04]} {[%emt 00:00:58]} Rac8+
{[%clk 00:08:54]} {[%emt 00:01:04]} 23. Kb1 {[%clk 00:01:03]} {[%emt 00:00:12]}
Rxd5 {[%clk 00:08:16]} {[%emt 00:00:47]} 24. exd5 {[%clk 00:01:10]} {[%emt
00:00:03]} Rc4 {[%clk 00:05:27]} {[%emt 00:02:59]} 25. Rd1 {[%clk 00:00:56]}
{[%emt 00:00:24]} Bf4 {[%clk 00:03:16]} {[%emt 00:02:21]} 26. g3 {[%clk
00:00:49]} {[%emt 00:00:18]} Be5 {[%clk 00:02:38]} {[%emt 00:00:48]} 27. Nf3
{[%clk 00:00:33]} {[%emt 00:00:25]} 1/2-1/2

[Event "FIDE U16 Olympiad_boards_81-124"]
[Site "Eindhoven, Netherlands"]
[Date "2023.08.14"]
[Round "2.8"]
[White "Mohd Tarmizi, Nur Uzma Bazilah"]
[Black "Gao, Lucy"]
[Result "1-0"]
[TimeControl "45min+10sec"]
[WhiteElo "1367"]
[BlackElo "1618"]

1. e4 {[%clk 00:45:13]} {[%emt 00:00:06]} c5 {[%clk 00:45:17]} {[%emt
00:00:05]} 2. Nf3 {[%clk 00:45:02]} {[%emt 00:00:20]} g6 {[%clk 00:45:22]}
{[%emt 00:00:06]} 3. c3 {[%clk 00:44:55]} {[%emt 00:00:16]} d5 {[%clk
00:45:05]} {[%emt 00:00:28]} 4. exd5 {[%clk 00:44:07]} {[%emt 00:00:57]} Qxd5
{[%clk 00:45:10]} {[%emt 00:00:05]} 5. d4 {[%clk 00:43:22]} {[%emt 00:00:55]}
Nc6 {[%clk 00:44:11]} {[%emt 00:01:10]} 6. Be3 {[%clk 00:42:33]} {[%emt
00:00:58]} Bg4 {[%clk 00:36:24]} {[%emt 00:07:58]} 7. c4 {[%clk 00:27:14]}
{[%emt 00:15:28]} Qf5 {[%clk 00:26:04]} {[%emt 00:10:30]} 8. Bd3 {[%clk
00:20:12]} {[%emt 00:07:11]} Bxf3 {[%clk 00:24:00]} {[%emt 00:02:16]} 9. gxf3
{[%clk 00:20:11]} {[%emt 00:00:10]} Qd7 {[%clk 00:21:17]} {[%emt 00:02:53]} 10.
d5 {[%clk 00:19:44]} {[%emt 00:00:37]} Nd4 {[%clk 00:17:13]} {[%emt 00:04:15]}
11. Bxd4 {[%clk 00:19:41]} {[%emt 00:00:13]} cxd4 {[%clk 00:17:20]} {[%emt
00:00:03]} 12. Bc2 {[%clk 00:19:34]} {[%emt 00:00:17]} a6 {[%clk 00:13:08]}
{[%emt 00:04:22]} 13. Qxd4 {[%clk 00:19:17]} {[%emt 00:00:26]} Nf6 {[%clk
00:12:41]} {[%emt 00:00:37]} 14. Nc3 {[%clk 00:18:54]} {[%emt 00:00:32]} b5
{[%clk 00:12:00]} {[%emt 00:00:52]} 15. cxb5 {[%clk 00:16:37]} {[%emt
00:02:27]} axb5 {[%clk 00:12:07]} {[%emt 00:00:03]} 16. Bd3 {[%clk 00:15:39]}
{[%emt 00:01:09]} Rb8 {[%clk 00:11:15]} {[%emt 00:01:01]} 17. a4 {[%clk
00:12:58]} {[%emt 00:02:50]} bxa4 {[%clk 00:09:54]} {[%emt 00:01:32]} 18. Rxa4
{[%clk 00:12:33]} {[%emt 00:00:35]} Qb7 {[%clk 00:06:17]} {[%emt 00:03:47]} 19.
Bb5+ {[%clk 00:08:01]} {[%emt 00:04:42]} Kd8 {[%clk 00:06:17]} {[%emt
00:00:10]} 20. d6 {[%clk 00:06:58]} {[%emt 00:01:14]} Qxf3 {[%clk 00:03:33]}
{[%emt 00:02:54]} 21. dxe7+ {[%clk 00:07:03]} {[%emt 00:00:05]} Kxe7 {[%clk
00:03:22]} {[%emt 00:00:20]} 22. Qe5+ {[%clk 00:07:05]} {[%emt 00:00:08]} Kd8
{[%clk 00:03:07]} {[%emt 00:00:25]} 23. Rd4+ {[%clk 00:07:06]} {[%emt
00:00:09]} Kc8 {[%clk 00:02:36]} {[%emt 00:00:41]} 24. Rc4+ {[%clk 00:07:01]}
{[%emt 00:00:15]} Kb7 {[%clk 00:02:05]} {[%emt 00:00:41]} 25. Qc7+ {[%clk
00:07:07]} {[%emt 00:00:04]} Ka8 {[%clk 00:02:07]} {[%emt 00:00:09]} 26. Ra4#
{[%clk 00:07:14]} {[%emt 00:00:02]} 1-0

[Event "FIDE U16 Olympiad_boards_81-124"]
[Site "Eindhoven, Netherlands"]
[Date "2023.08.14"]
[Round "2.9"]
[White "Medina, Joshua"]
[Black "Caceres Benitez, Arturo Eduardo"]
[Result "0-1"]
[TimeControl "45min+10sec"]
[WhiteElo "1644"]
[BlackElo "2153"]

1. e4 {[%clk 00:45:14]} {[%emt 00:00:05]} c5 {[%clk 00:44:45]} {[%emt
00:00:36]} 2. Nf3 {[%clk 00:45:19]} {[%emt 00:00:04]} Nc6 {[%clk 00:44:49]}
{[%emt 00:00:06]} 3. d4 {[%clk 00:45:11]} {[%emt 00:00:19]} cxd4 {[%clk
00:44:58]} {[%emt 00:00:01]} 4. Nxd4 {[%clk 00:45:18]} {[%emt 00:00:03]} e5
{[%clk 00:45:07]} {[%emt 00:00:01]} 5. Nb5 {[%clk 00:45:20]} {[%emt 00:00:08]}
d6 {[%clk 00:45:15]} {[%emt 00:00:02]} 6. N1c3 {[%clk 00:45:22]} {[%emt
00:00:08]} a6 {[%clk 00:45:24]} {[%emt 00:00:01]} 7. Na3 {[%clk 00:45:29]}
{[%emt 00:00:02]} b5 {[%clk 00:45:27]} {[%emt 00:00:08]} 8. Nd5 {[%clk
00:45:36]} {[%emt 00:00:03]} Nge7 {[%clk 00:45:35]} {[%emt 00:00:02]} 9. c4
{[%clk 00:38:51]} {[%emt 00:06:55]} Nxd5 {[%clk 00:45:40]} {[%emt 00:00:04]} 10.
Qxd5 {[%clk 00:37:45]} {[%emt 00:01:16]} Bd7 {[%clk 00:44:11]} {[%emt
00:01:39]} 11. Be3 {[%clk 00:34:46]} {[%emt 00:03:10]} Rc8 {[%clk 00:43:04]}
{[%emt 00:01:16]} 12. Be2 {[%clk 00:31:29]} {[%emt 00:03:28]} Nd4 {[%clk
00:42:27]} {[%emt 00:00:47]} 13. Bxd4 {[%clk 00:28:14]} {[%emt 00:03:25]} Bc6
{[%clk 00:42:15]} {[%emt 00:00:21]} 14. Bb6 {[%clk 00:27:56]} {[%emt 00:00:29]}
Qxb6 {[%clk 00:42:17]} {[%emt 00:00:07]} 15. Qd3 {[%clk 00:27:40]} {[%emt
00:00:26]} Qa5+ {[%clk 00:42:24]} {[%emt 00:00:03]} 16. Qd2 {[%clk 00:23:51]}
{[%emt 00:04:00]} Qxd2+ {[%clk 00:42:30]} {[%emt 00:00:03]} 17. Kxd2 {[%clk
00:24:00]} {[%emt 00:00:02]} Bxe4 {[%clk 00:42:27]} {[%emt 00:00:13]} 18. f3
{[%clk 00:23:53]} {[%emt 00:00:17]} Bg6 {[%clk 00:42:14]} {[%emt 00:00:22]} 19.
cxb5 {[%clk 00:23:37]} {[%emt 00:00:27]} d5 {[%clk 00:42:23]} {[%emt 00:00:01]}
20. Rhc1 {[%clk 00:22:35]} {[%emt 00:01:11]} Bb4+ {[%clk 00:42:20]} {[%emt
00:00:13]} 21. Kd1 {[%clk 00:22:37]} {[%emt 00:00:08]} Ke7 {[%clk 00:40:59]}
{[%emt 00:01:31]} 22. Nc2 {[%clk 00:18:16]} {[%emt 00:04:32]} Bd6 {[%clk
00:41:03]} {[%emt 00:00:06]} 23. Ne3 {[%clk 00:16:45]} {[%emt 00:01:40]} d4
{[%clk 00:41:03]} {[%emt 00:00:10]} 24. Nc4 {[%clk 00:16:25]} {[%emt 00:00:30]}
axb5 {[%clk 00:40:43]} {[%emt 00:00:30]} 25. Nxd6 {[%clk 00:16:07]} {[%emt
00:00:29]} Kxd6 {[%clk 00:40:51]} {[%emt 00:00:02]} 26. Bxb5 {[%clk 00:16:16]}
{[%emt 00:00:01]} f5 {[%clk 00:41:00]} 27. a4 {[%clk 00:15:58]} {[%emt
00:00:28]} e4 {[%clk 00:41:07]} {[%emt 00:00:02]} 28. a5 {[%clk 00:15:44]}
{[%emt 00:00:25]} Rb8 {[%clk 00:41:03]} {[%emt 00:00:13]} 29. Rc6+ {[%clk
00:11:45]} {[%emt 00:04:10]} Kd5 {[%clk 00:40:59]} {[%emt 00:00:13]} 30. Ba4
{[%clk 00:11:23]} {[%emt 00:00:33]} Rxb2 {[%clk 00:40:23]} 31. Rac1 {[%clk
00:11:24]} {[%emt 00:00:55]} d3 {[%clk 00:40:05]} {[%emt 00:00:27]} 32. R1c4
{[%clk 00:11:20]} {[%emt 00:00:14]} Be8 {[%clk 00:37:12]} {[%emt 00:03:02]} 33.
fxe4+ {[%clk 00:09:48]} {[%emt 00:01:43]} fxe4 {[%clk 00:36:16]} {[%emt
00:01:07]} 34. R6c5+ {[%clk 00:09:43]} {[%emt 00:00:16]} Kd6 {[%clk 00:36:24]}
{[%emt 00:00:01]} 35. Bc6 {[%clk 00:08:57]} {[%emt 00:00:56]} Bxc6 {[%clk
00:35:39]} {[%emt 00:00:54]} 36. Rxc6+ {[%clk 00:09:05]} {[%emt 00:00:03]} Ke5
{[%clk 00:35:43]} {[%emt 00:00:04]} 37. g3 {[%clk 00:08:16]} {[%emt 00:01:00]}
Rd8 {[%clk 00:35:48]} {[%emt 00:00:05]} 38. Rb6 {[%clk 00:07:15]} {[%emt
00:01:11]} Rxb6 {[%clk 00:35:37]} {[%emt 00:00:21]} 39. axb6 {[%clk 00:07:24]}
{[%emt 00:00:02]} Rb8 {[%clk 00:35:40]} {[%emt 00:00:07]} 40. Rb4 {[%clk
00:06:56]} {[%emt 00:00:38]} e3 {[%clk 00:35:38]} {[%emt 00:00:11]} 41. b7
{[%clk 00:06:38]} {[%emt 00:00:28]} Kd5 {[%clk 00:35:43]} {[%emt 00:00:04]} 42.
Ke1 {[%clk 00:06:11]} {[%emt 00:00:39]} Kc5 {[%clk 00:34:49]} {[%emt 00:01:04]}
43. Re4 {[%clk 00:06:10]} {[%emt 00:00:10]} Rxb7 {[%clk 00:34:47]} {[%emt
00:00:12]} 44. Rxe3 {[%clk 00:06:10]} {[%emt 00:00:10]} Kd4 {[%clk 00:34:56]}
{[%emt 00:00:01]} 45. Re8 {[%clk 00:06:03]} {[%emt 00:00:18]} Rb1+ {[%clk
00:35:01]} {[%emt 00:00:05]} 46. Kd2 {[%clk 00:06:10]} {[%emt 00:00:03]} Rb2+
{[%clk 00:35:09]} {[%emt 00:00:01]} 47. Kd1 {[%clk 00:06:10]} {[%emt 00:00:11]}
Rxh2 {[%clk 00:35:17]} {[%emt 00:00:02]} 48. Re7 {[%clk 00:06:00]} {[%emt
00:00:20]} g6 {[%clk 00:35:15]} {[%emt 00:00:12]} 49. Rd7+ {[%clk 00:04:54]}
{[%emt 00:01:16]} Ke3 {[%clk 00:35:22]} {[%emt 00:00:02]} 50. Re7+ {[%clk
00:04:53]} {[%emt 00:00:11]} Kf3 {[%clk 00:35:31]} {[%emt 00:00:01]} 51. Rd7
{[%clk 00:04:37]} {[%emt 00:00:28]} Kxg3 {[%clk 00:35:34]} {[%emt 00:00:06]} 52.
Rxd3+ {[%clk 00:04:45]} {[%emt 00:00:02]} Kf4 {[%clk 00:35:30]} {[%emt
00:00:14]} 53. Ke1 {[%clk 00:04:48]} {[%emt 00:00:06]} g5 {[%clk 00:35:34]}
{[%emt 00:00:06]} 54. Kf1 {[%clk 00:04:53]} {[%emt 00:00:06]} h5 {[%clk
00:35:42]} {[%emt 00:00:02]} 55. Kg1 {[%clk 00:04:44]} {[%emt 00:00:19]} Rb2
{[%clk 00:35:49]} {[%emt 00:00:02]} 56. Ra3 {[%clk 00:04:14]} {[%emt 00:00:42]}
h4 {[%clk 00:35:55]} {[%emt 00:00:03]} 57. Ra4+ {[%clk 00:04:19]} {[%emt
00:00:05]} Kg3 {[%clk 00:36:01]} {[%emt 00:00:04]} 58. Ra3+ {[%clk 00:04:26]}
{[%emt 00:00:03]} Kg4 {[%clk 00:36:09]} {[%emt 00:00:02]} 59. Ra4+ {[%clk
00:04:28]} {[%emt 00:00:08]} Kh5 {[%clk 00:36:18]} 60. Kh1 {[%clk 00:04:32]}
{[%emt 00:00:06]} h3 {[%clk 00:36:27]} 61. Ra5 {[%clk 00:04:24]} {[%emt
00:00:18]} Kh4 {[%clk 00:36:35]} 62. Ra8 {[%clk 00:04:31]} {[%emt 00:00:03]} g4
{[%clk 00:36:36]} {[%emt 00:00:10]} 63. Ra4 {[%clk 00:04:30]} {[%emt 00:00:11]}
Re2 {[%clk 00:36:03]} {[%emt 00:00:43]} 64. Rb4 {[%clk 00:04:32]} {[%emt
00:00:08]} Kg5 {[%clk 00:36:06]} {[%emt 00:00:07]} 65. Rb3 {[%clk 00:00:40]}
{[%emt 00:04:02]} Kf4 {[%clk 00:36:12]} {[%emt 00:00:03]} 66. Kg1 {[%clk
00:00:30]} {[%emt 00:00:20]} g3 {[%clk 00:36:16]} {[%emt 00:00:05]} 67. Rb1
{[%clk 00:00:22]} {[%emt 00:00:20]} Rc2 {[%clk 00:36:15]} {[%emt 00:00:10]} 68.
Rd1 {[%clk 00:00:19]} {[%emt 00:00:14]} Ke3 {[%clk 00:36:18]} {[%emt 00:00:07]}
69. Ra1 {[%clk 00:00:12]} {[%emt 00:00:17]} Kd2 {[%clk 00:36:24]} {[%emt
00:00:03]} 70. Rf1 {[%clk 00:00:13]} {[%emt 00:00:10]} Rc1 {[%clk 00:36:28]}
{[%emt 00:00:06]} 71. Rxc1 {[%clk 00:00:19]} {[%emt 00:00:04]} Kxc1 {[%clk
00:36:36]} {[%emt 00:00:02]} 0-1

[Event "FIDE U16 Olympiad_boards_81-124"]
[Site "Eindhoven, Netherlands"]
[Date "2023.08.14"]
[Round "2.10"]
[White "Jodorcovsky, Alejandro David"]
[Black "La Fleur, Juninho"]
[Result "1-0"]
[TimeControl "45min+10sec"]
[WhiteElo "1633"]
[BlackElo "1328"]

1. e4 {[%clk 00:45:05]} {[%emt 00:00:14]} e5 {[%clk 00:45:16]} {[%emt
00:00:03]} 2. Nf3 {[%clk 00:45:14]} {[%emt 00:00:02]} Nc6 {[%clk 00:45:24]}
{[%emt 00:00:02]} 3. Bb5 {[%clk 00:45:23]} {[%emt 00:00:01]} Nf6 {[%clk
00:45:33]} {[%emt 00:00:02]} 4. d3 {[%clk 00:45:24]} {[%emt 00:00:09]} Bc5
{[%clk 00:45:35]} {[%emt 00:00:08]} 5. c3 {[%clk 00:45:24]} {[%emt 00:00:10]}
d6 {[%clk 00:45:16]} {[%emt 00:00:29]} 6. d4 {[%clk 00:44:25]} {[%emt
00:01:09]} exd4 {[%clk 00:45:20]} {[%emt 00:00:05]} 7. cxd4 {[%clk 00:44:34]}
{[%emt 00:00:01]} Bb4+ {[%clk 00:45:28]} {[%emt 00:00:02]} 8. Kf1 {[%clk
00:44:43]} {[%emt 00:00:02]} O-O {[%clk 00:45:21]} {[%emt 00:00:17]} 9. Qa4
{[%clk 00:44:35]} {[%emt 00:00:17]} Qe7 {[%clk 00:35:26]} {[%emt 00:10:05]} 10.
Bxc6 {[%clk 00:43:16]} {[%emt 00:01:29]} bxc6 {[%clk 00:28:38]} {[%emt
00:06:58]} 11. Qxb4 {[%clk 00:43:24]} {[%emt 00:00:02]} Ba6+ {[%clk 00:28:47]}
12. Kg1 {[%clk 00:43:33]} {[%emt 00:00:01]} Qxe4 {[%clk 00:28:43]} {[%emt
00:00:14]} 13. h3 {[%clk 00:43:37]} {[%emt 00:00:06]} Rfe8 {[%clk 00:27:38]}
{[%emt 00:01:15]} 14. Kh2 {[%clk 00:43:37]} {[%emt 00:00:10]} Qg6 {[%clk
00:26:13]} {[%emt 00:01:34]} 15. Nc3 {[%clk 00:43:03]} {[%emt 00:00:45]} Rab8
{[%clk 00:23:13]} {[%emt 00:03:09]} 16. Qa5 {[%clk 00:43:10]} {[%emt 00:00:04]}
Bb5 {[%clk 00:20:44]} {[%emt 00:02:40]} 17. Nxb5 {[%clk 00:41:23]} {[%emt
00:01:56]} Rxb5 {[%clk 00:20:44]} {[%emt 00:00:10]} 18. Qxc7 {[%clk 00:41:29]}
{[%emt 00:00:04]} Rh5 {[%clk 00:14:21]} {[%emt 00:06:34]} 19. Bd2 {[%clk
00:37:59]} {[%emt 00:03:39]} h6 {[%clk 00:10:16]} {[%emt 00:04:15]} 20. Rhe1
{[%clk 00:34:46]} {[%emt 00:03:23]} Rf8 {[%clk 00:08:21]} {[%emt 00:02:05]} 21.
Qxc6 {[%clk 00:30:24]} {[%emt 00:04:32]} Rb8 {[%clk 00:06:38]} {[%emt
00:01:51]} 22. b3 {[%clk 00:29:09]} {[%emt 00:01:28]} Rbb5 {[%clk 00:05:21]}
{[%emt 00:01:26]} 23. Ne5 {[%clk 00:22:38]} {[%emt 00:06:40]} dxe5 {[%clk
00:00:35]} {[%emt 00:04:57]} 24. Qxb5 {[%clk 00:22:23]} {[%emt 00:00:25]} Qf5
{[%clk 00:00:31]} {[%emt 00:00:14]} 25. Kg1 {[%clk 00:21:04]} {[%emt 00:01:29]}
Ne4 {[%clk 00:00:18]} {[%emt 00:00:23]} 26. Qe2 {[%clk 00:18:58]} {[%emt
00:02:16]} Nf6 {[%clk 00:00:11]} {[%emt 00:00:18]} 27. dxe5 {[%clk 00:18:58]}
{[%emt 00:00:10]} 1-0